[Event "WR Chess Masters 2023"]
[Site "Duesseldorf"]
[Date "2023.02.23"]
[Round "7.1"]
[White "Aronian, Levon"]
[Black "Nepomniachtchi, Ian"]
[Result "0-1"]
[ECO "D37"]
[WhiteElo "2736"]
[BlackElo "2793"]
[Annotator "TA"]
[PlyCount "106"]
[EventDate "2023.02.16"]
[EventCountry "GER"]
[SourceTitle "playchess.com"]
[Source "ChessBase"]
[SourceQuality "1"]
[TimeControl "40/7200:20/3600:900+30"]

{[%evp 18,106,19,25,22,19,18,25,14,0,5,9,9,0,0,0,0,0,0,0,0,0,0,0,0,0,0,0,0,0,0,0,0,0,0,0,0,-49,-58,-47,0,0,0,-47,-21,-18,0,0,0,0,0,0,0,-12,-12,-16,0,-59,-35,-246,-261,-254,-257,-249,-269,-253,-259,-287,-269,-322,-325,-327,-327,-370,-362,-365,-364,-362,-343,-689,-698,-674,-672,-628,-624,-810,-716,-611,-626,-775,-753]} 1. d4 {[%emt 0:00:04]} Nf6 {[%emt 0:00:06]} 2. c4 {[%emt 0:00:04]} e6 {[%emt 0:00:10]} 3. Nf3 {[%emt 0:00:05]} d5 {[%emt 0:00:05]} 4. Nc3 {[%emt 0:00:10]} Be7 {[%emt 0:00:18]} 5. Bf4 {[%emt 0:00:25]} O-O {[%emt 0:00:12]} 6. e3 {[%emt 0:00:17]} c5 {[%emt 0:00:23]} 7. dxc5 {[%emt 0:00:46]} Bxc5 {[%emt 0:00:07]} 8. cxd5 {[%emt 0:03:08]} Nxd5 {[%emt 0:00:59]} 9. Nxd5 {[%emt 0:00:19]} exd5 {[%emt 0:00:07]} 10. Bd3 {[%emt 0:01:35][%cal Od3h7]} Bb4+ {[%emt 0:00:29] D37: Queen's Gambit Declined: 5 Bf4.} 11. Nd2 {[%emt 0:00:06]} Nc6 {[%emt 0:00:30]} 12. O-O {[%emt 0:00:40]} Be7 {[%emt 0:00:18] [#] White has an edge.} 13. Qb3 $146 {[%emt 0:03:40]} ({Predecessor:} 13. Rc1 Qb6 14. Qc2 Nb4 15. Bxh7+ Kh8 16. Qc7 Qxc7 17. Rxc7 Bd8 18. Bd6 Bxc7 19. Bxf8 {1-0 Nepomniachtchi,I (2774)-Nakamura,H (2743) Sinquefield Cup 7th 2019 (5)}) 13... Bf6 {[%emt 0:02:44]} 14. a3 {[%emt 0:10:01]} Qe7 {[%emt 0:02:48]} 15. Rac1 {[%emt 0:06:33]} (15. Qxd5 $2 Rd8 16. Qb3 Qd7 17. Bxh7+ Kxh7 $19) 15... Be6 {[%emt 0:02:51]} 16. Qb5 {[%emt 0:00:46]} Rac8 {[%emt 0:05:15]} 17. Rc2 {[%emt 0:04:57]} a6 {[%emt 0:23:07]} (17... g5 $5 18. Bg3 $8 h5 $11) 18. Qb6 {[%emt 0:00:05]} Qd7 {[%emt 0:00:28]} (18... g5 $5 19. Bg3 $8 Qd7 $11) 19. Nb3 {[%emt 0:02:20]} Bd8 {[%emt 0:06:15]} 20. Qc5 {[%emt 0:00:02]} Be7 {[%emt 0:06:44]} 21. Qb6 {[%emt 0:00:02]} Bd8 {[%emt 0:18:52]} (21... g5 $5 22. Bg3 $8 Bd8 $11) 22. Qc5 {[%emt 0:00:05]} Be7 {[%emt 0:00:16]} 23. Qb6 {[%emt 0:00:14]} g5 {[%emt 0:00:02]} (23... Bd8 $5 24. Qc5 $8 $11) 24. Bg3 {[%emt 0:01:04]} Bd8 {[%emt 0:00:20]} 25. Qc5 {[%emt 0:00:04]} Be7 {[%emt 0:00:03]} 26. Qb6 {[%emt 0:00:04]} f5 {[%emt 0:10:26]} (26... Bd8 $5 27. Qc5 $8 Be7 28. Qb6 $11) 27. f3 {[%emt 0:01:39]} (27. f4 $11 {feels stronger.}) 27... Bd8 $1 $15 {[%emt 0:01:33]} 28. Qc5 {[%emt 0:00:05]} Be7 {[%emt 0:00:02] Repels Qd6} (28... Qf7 $5) 29. Qb6 {[%emt 0:00:10]} Bd8 {[%emt 0:04:23]} 30. Qc5 {[%emt 0:00:08]} f4 {[%emt 0:00:42]} (30... Qf7 $5 {[%cal Rc6e5]}) 31. exf4 {[%emt 0:00:17]} gxf4 {[%emt 0:02:49]} (31... d4 {is interesting.} 32. Bc4 Na7 33. Rfc1 d3) 32. Bf2 {[%emt 0:10:04]} Be7 {[%emt 0:02:17]} 33. Qb6 {[%emt 0:01:14]} Bd8 $1 {[%emt 0:00:01]} 34. Qc5 {[%emt 0:00:06]} Bf6 {[%emt 0:04:33] ...Ne5 would be deadly.} 35. Rfc1 {[%emt 0:03:24]} Qg7 {[%emt 0:04:21]} 36. Qd6 {[%emt 0:03:44][%csl LRe6,LRf4]} Rce8 {[%emt 0:00:44]} (36... Rfe8 $5 {[%cal Rf6e5]} 37. Qxf4 Bg5 $11) 37. Re1 {[%emt 0:09:51]} (37. Qxf4 Bxb2 38. Qg3 Qxg3 39. hxg3 Bxc1 40. Rxc1 Ne5 $17) (37. Rd1 $11) 37... Ne5 {[%emt 0:05:54]} 38. Nd4 {[%emt 0:04:48] [#] Now White is beyond hope.} (38. Kf1 $15) 38... Bh3 $1 $19 {[%emt 0:02:18][%csl Gh3][%cal Rg7g2]} (38... Nxd3 39. Nxe6 Qg6 40. Ree2 (40. Nxf8 $2 Rxe1+ {[%mdl 64] Overworked Piece} 41. Bxe1 Bd4+ {[%mdl 64] Discovered Attack} 42. Kf1 Qxd6 $19) 40... Nxf2 41. Qxd5 $14 (41. Kxf2 $2 Bd4+ {[%mdl 64] Pin} 42. Kf1 Be3 $19) (41. Nxf8 $2 Nh3+ 42. Kf1 Qd3 $17)) 39. Bf1 {[%emt 0:11:47]} Nf7 $1 $40 {[%emt 0:00:19][%csl LRd4,LRd6][%mdl 192] Discovered Attack. Black is out for blood.} 40. Qxd5 {[%emt 0:00:00] aiming for Ne2.} Rxe1 {[%emt 0:00:00]} 41. Bxe1 {[%emt 0:00:04] Ne2 is the strong threat.} Bxd4+ {[%emt 0:01:59]} 42. Kh1 {[%emt 0:03:26]} Bc8 {[%emt 0:08:00]} 43. Bc4 {[%emt 0:07:47]} Re8 {[%emt 0:05:48] Dodges Qe4} (43... Bxb2 44. Bb4 Bxa3 45. Bxa3 $16) 44. Bb4 {[%emt 0:00:47]} Qf6 {[%emt 0:04:09]} ({Don't do} 44... Bxb2 45. Re2 (45. Rxb2 $2 Be6 $19 {[%mdl 64] Skewer}) 45... Be5 46. Rxe5 $18) 45. Bd3 {[%emt 0:01:23] [#]} Bc3 $1 {[%emt 0:12:19][%mdl 512]} 46. Bxc3 {[%emt 0:06:26] [#]} Qxc3 $3 {[%emt 0:00:08][%mdl 576] Remove Defender, Back Rank} 47. g4 {[%emt 0:00:07]} Qf6 {[%emt 0:03:51]} 48. Rc7 $2 {[%emt 0:00:22]} (48. Qh5 h6 49. Qg6+ Qxg6 50. Bxg6) 48... Re1+ {[%emt 0:01:51] Black is clearly winning.} 49. Kg2 {[%emt 0:01:50]} Be6 {[%emt 0:00:12]} 50. Qh5 {[%emt 0:04:17]} Qxb2+ {[%emt 0:01:32]} 51. Kh3 {[%emt 0:00:01]} h6 {[%emt 0:03:32] ( -> ...Ng5+)} 52. Qg6+ {[%emt 0:03:05]} Qg7 {[%emt 0:00:09]} 53. Kh4 {[%emt 0:00:03] [#]} Rh1 $1 {[%emt 0:01:16] Ingenious play by Nepomniachtchi!   Weighted Error Value: White=0.38/Black=0.04 (flawless)} 0-1

[Event "WR Chess Masters 2023"]
[Site "Duesseldorf"]
[Date "2023.02.23"]
[Round "7.2"]
[White "Esipenko, Andrey"]
[Black "Gukesh D"]
[Result "0-1"]
[ECO "E11"]
[WhiteElo "2675"]
[BlackElo "2718"]
[Annotator "TA"]
[PlyCount "72"]
[EventDate "2023.02.16"]
[EventCountry "GER"]
[SourceTitle "playchess.com"]
[Source "ChessBase"]
[SourceQuality "1"]
[TimeControl "40/7200:20/3600:900+30"]

{[%evp 17,72,0,3,0,2,-27,-16,-16,40,24,52,45,39,49,60,14,9,0,21,0,22,-19,-14,-29,0,0,0,-10,0,-61,-110,-133,-138,-121,-131,-131,-113,-482,-499,-462,-237,-227,-207,-194,-195,-194,-199,-191,-186,-177,-157,-213,-246,-990,-984,-2602,-2531]} 1. d4 {[%emt 0:00:17]} Nf6 {[%emt 0:00:19]} 2. c4 {[%emt 0:00:29]} e6 {[%emt 0:00:08]} 3. Nf3 {[%emt 0:00:13]} d5 {[%emt 0:00:10]} 4. g3 {[%emt 0:00:20]} Bb4+ {[%emt 0:00:28]} 5. Bd2 {[%emt 0:00:09]} Be7 {[%emt 0:00:07]} 6. Bg2 {[%emt 0:00:21]} O-O {[%emt 0:00:09]} 7. O-O {[%emt 0:00:28]} c6 {[%emt 0:00:05]} 8. Qc2 {[%emt 0:00:34]} Nbd7 {[%emt 0:00:07]} 9. b3 {[%emt 0:00:21]} b6 {[%emt 0:02:21]} 10. Nc3 {[%emt 0:00:33][%cal Bb1c3,Bc3e2,Be2d4][%mdl 32] E11: Bogo-Indian.} Ba6 {[%emt 0:06:14]} 11. e4 {[%emt 0:01:23] is now debated instead of 11.cxd5.} dxc4 {[%emt 0:00:30]} 12. Rfe1 {[%emt 0:00:12] [#] The position is equal.} e5 {[%emt 0:08:16]} 13. Ne2 $14 {[%emt 0:01:05] [#]} ({Much worse is} 13. Nxe5 Nxe5 14. dxe5 Ng4 $15) (13. dxe5 Ng4 $15) 13... Ng4 $146 {[%emt 0:15:07]} ({Predecessor:} 13... cxb3 14. axb3 Bxe2 15. Rxe2 Qc7 16. Bc3 Bd6 17. dxe5 Nxe5 18. Nd4 Rfd8 19. Rd1 Bf8 {½-½ Panjwani,R (2436)-Lee,M (2377) Charlotte CCCSA Spring GM-A 2022 (3)}) 14. bxc4 {[%emt 0:44:07]} exd4 {[%emt 0:00:26]} 15. Nexd4 {[%emt 0:00:40]} Nde5 {[%emt 0:10:52]} 16. Nxe5 {[%emt 0:03:11]} (16. Bc3 $14) 16... Nxe5 $11 {[%emt 0:00:16]} 17. Bc3 {[%emt 0:00:42]} Bc5 {[%emt 0:07:17]} (17... Bxc4 $2 18. Nf5 Ng6 19. Bxg7 $18 (19. Nxg7 f6 $18)) 18. Rad1 {[%emt 0:07:37][%cal Od4c6] Nxc6! is the strong threat.} Qc7 {[%emt 0:05:09]} 19. f4 {[%emt 0:20:00]} (19. Nb3 $5 {[%cal Rb3c5]}) 19... Nxc4 {[%emt 0:00:41]} 20. Kh1 {[%emt 0:00:16] And now Nf5 would win.} Rad8 {[%emt 0:08:00]} 21. Nf5 $1 {[%emt 0:04:56]} f6 {[%emt 0:00:42]} 22. Rxd8 {[%emt 0:03:01]} Qxd8 {[%emt 0:01:58]} 23. Qe2 {[%emt 0:00:25]} (23. Bf1 $11 b5 24. a4) 23... g6 $15 {[%emt 0:14:35]} 24. Nh6+ {[%emt 0:16:44]} Kg7 {[%emt 0:00:08]} 25. Ng4 {[%emt 0:00:14] [#]} Bd4 $1 {[%emt 0:04:15]} 26. Rd1 {[%emt 0:00:46]} c5 {[%emt 0:00:37]} 27. Qf3 $2 {[%emt 0:05:24][%mdl 8192] Loses the game.} (27. Bf3 $17 {is tougher.}) 27... h5 $19 {[%emt 0:05:35]} 28. Nf2 {[%emt 0:00:09]} Ne3 {[%emt 0:00:45]} (28... Ne5 $142 29. fxe5 fxe5 30. Bxd4 exd4) 29. Rd2 {[%emt 0:00:24]} Qc7 {[%emt 0:04:13]} 30. Bxd4 {[%emt 0:01:32]} cxd4 {[%emt 0:00:06]} 31. Rxd4 {[%emt 0:00:12]} Qc3 {[%emt 0:02:53] ( -> ...Qe1+)} 32. Rd7+ {[%emt 0:00:04]} Rf7 {[%emt 0:00:16]} 33. Rxf7+ {[%emt 0:00:07]} Kxf7 {[%emt 0:00:03]} 34. h4 {[%emt 0:00:23]} (34. h3 $17 {might work better.}) 34... Bc4 {[%emt 0:05:55]} 35. Bh3 $2 {[%emt 0:01:05]} (35. f5) 35... f5 {[%emt 0:03:18] aiming for ...Qe1+.} (35... Bxa2 $2 {too greedy.} 36. f5 $17) 36. Kh2 {[%emt 0:00:16] White is weak on the light squares} Qd2 {[%emt 0:01:00] Weighted Error Value: White=0.74/Black=0.16 (very precise)} 0-1

[Event "WR Chess Masters 2023"]
[Site "Duesseldorf"]
[Date "2023.02.23"]
[Round "7.3"]
[White "Praggnanandhaa R"]
[Black "So, Wesley"]
[Result "1/2-1/2"]
[ECO "C54"]
[WhiteElo "2690"]
[BlackElo "2766"]
[Annotator "TA"]
[PlyCount "164"]
[EventDate "2023.02.16"]
[EventCountry "GER"]
[SourceTitle "playchess.com"]
[Source "ChessBase"]
[SourceQuality "1"]
[TimeControl "40/7200:20/3600:900+30"]

{[%evp 10,164,31,18,26,15,20,16,14,19,18,0,0,0,12,8,2,7,6,20,23,18,24,3,11,0,0,-12,0,-12,0,-15,0,0,7,0,0,0,0,0,0,-41,-21,-18,-22,-6,-2,-15,-25,-46,-14,-37,0,-35,-39,-46,-14,-14,-14,-20,-22,-29,-21,-21,-21,-27,-29,-48,-53,-58,-58,-60,-87,-87,-81,-74,-36,-36,-36,-36,-36,-36,-36,-36,-36,-36,-36,-36,-36,-36,-36,-36,-36,-36,0,-36,-36,-36,-36,-36,-36,-49,-59,-65,-65,-113,-65,-166,-75,-159,-83,-125,-33,-33,-33,-33,0,0,0,0,0,0,0,0,0,0,0,0,0,0,0,0,0,0,0,0,0,0,0,0,0,0,0,0,0,0,0,0,0,0,0,0,0,0,0,0,0]} 1. e4 {[%emt 0:00:23]} e5 {[%emt 0:01:04]} 2. Nf3 {[%emt 0:00:05]} Nc6 {[%emt 0:00:50]} 3. Bc4 {[%emt 0:00:08]} Bc5 {[%emt 0:00:08]} 4. d3 {[%emt 0:00:06]} Nf6 {[%emt 0:00:19]} 5. O-O {[%emt 0:00:27]} d6 {[%emt 0:00:29]} 6. c3 {[%emt 0:00:06]} a5 {[%emt 0:00:56] C54: Giuoco Piano: 4 c3 Nf6, main lines with 5 d4 and 5 d3.} 7. Re1 {[%emt 0:00:15]} (7. Bg5 $5 {[%cal Rd3d4]}) 7... O-O {[%emt 0:00:15]} 8. h3 {[%emt 0:00:17]} Be6 {[%emt 0:01:42]} 9. Bb5 {[%emt 0:00:37]} Ba7 {[%emt 0:00:05]} 10. Be3 {[%emt 0:04:37]} Bxe3 {[%emt 0:14:17]} 11. Rxe3 {[%emt 0:00:14]} Ne7 {[%emt 0:00:04]} 12. d4 {[%emt 0:12:48]} c6 {[%emt 0:10:51]} 13. Bf1 {[%emt 0:04:43] [#]} d5 $146 {[%emt 0:13:31]} ({Predecessor:} 13... Ng6 14. c4 a4 15. Nc3 Qa5 16. Qd2 h6 17. Rc1 Rfd8 18. d5 cxd5 19. Nxd5 Nd7 {½-½ Moussard,J (2676)-Van Foreest,L (2585) WchT Pool-A 13th rapid 2022 (2.3)}) 14. Nbd2 {[%emt 0:18:12]} exd4 {[%emt 0:07:12]} 15. Nxd4 {[%emt 0:00:32]} Bd7 {[%emt 0:00:05]} 16. e5 {[%emt 0:17:02]} Ne8 {[%emt 0:00:44]} 17. Bd3 {[%emt 0:00:33]} c5 {[%emt 0:02:28]} 18. N4f3 {[%emt 0:04:09]} ({Not} 18. Qh5 $2 g6 19. Qh6 cxd4 $19) 18... Nc7 {[%emt 0:00:51]} 19. Nf1 {[%emt 0:03:45]} Bf5 {[%emt 0:03:55]} 20. Qc2 {[%emt 0:01:35]} Qd7 {[%emt 0:07:28]} 21. Rd1 {[%emt 0:00:27]} a4 {[%emt 0:04:21]} 22. Bxf5 {[%emt 0:08:08]} Qxf5 {[%emt 0:04:18]} 23. Red3 {[%emt 0:01:20]} Qe6 {[%emt 0:10:01]} 24. Ng3 {[%emt 0:07:25]} Rfd8 {[%emt 0:03:00]} 25. b4 {[%emt 0:06:07]} axb3 {[%emt 0:01:57]} 26. axb3 {[%emt 0:00:04]} h6 {[%emt 0:00:28]} 27. b4 {[%emt 0:05:05]} b6 {[%emt 0:00:30]} 28. bxc5 {[%emt 0:01:44]} bxc5 {[%emt 0:00:04]} 29. Rb1 {[%emt 0:00:25]} Rdb8 {[%emt 0:04:14]} 30. Rdd1 {[%emt 0:00:28]} Nb5 {[%emt 0:02:12]} 31. Ne2 {[%emt 0:04:00]} Ng6 {[%emt 0:03:24]} 32. Qd2 {[%emt 0:01:30]} Nxe5 {[%emt 0:04:09]} 33. Qxd5 {[%emt 0:01:52] [#]} Nd4 $1 {[%emt 0:05:07][%mdl 64] Deflection} 34. Rxb8+ {[%emt 0:00:33]} Rxb8 {[%emt 0:00:02]} 35. Qxe6 {[%emt 0:00:12]} Nexf3+ {[%emt 0:00:05]} 36. gxf3 {[%emt 0:00:05]} Nxe6 $11 {[%emt 0:00:03][%mdl 4096] Endgame KRN-KRN} 37. Rd2 {[%emt 0:00:28]} Ra8 {[%emt 0:05:15]} 38. Kg2 {[%emt 0:03:51]} Ra4 {[%emt 0:00:05]} 39. Kg3 {[%emt 0:01:51]} g5 {[%emt 0:00:06]} 40. Rd5 {[%emt 0:00:00][%cal Of3f4]} Kg7 {[%emt 0:00:00]} 41. Re5 {[%emt 0:09:25]} Kf6 {[%emt 0:03:12]} 42. Re4 {[%emt 0:06:43]} Ra3 {[%emt 0:16:16]} 43. h4 {[%emt 0:08:44]} Kf5 {[%emt 0:00:28]} 44. hxg5 {[%emt 0:01:22]} hxg5 {[%emt 0:00:03]} 45. Kg2 {[%emt 0:01:38]} Ra2 {[%emt 0:00:10][%cal Oa2e2] White must now prevent ...Rxe2!} 46. Kf1 {[%emt 0:01:26]} Ra1+ {[%emt 0:01:41]} 47. Kg2 {[%emt 0:01:46]} Kf6 {[%emt 0:03:19]} 48. Re3 {[%emt 0:04:54]} Rd1 {[%emt 0:08:02]} 49. Kh2 {[%emt 0:01:27]} Rd2 {[%emt 0:08:17]} 50. Kg1 {[%emt 0:00:42]} Rc2 {[%emt 0:02:39]} 51. Re4 {[%emt 0:01:20]} Rd2 {[%emt 0:02:29]} 52. Re3 {[%emt 0:00:38]} Kg6 {[%emt 0:02:18]} 53. Kf1 {[%emt 0:01:48]} Ra2 {[%emt 0:02:09]} 54. Kg1 {[%emt 0:02:17]} Ra3 {[%emt 0:01:25]} 55. Re4 {[%emt 0:01:27] Dodges Nf4} Ra6 {[%emt 0:00:46]} 56. Re3 {[%emt 0:09:07]} f5 {[%emt 0:00:40]} 57. c4 {[%emt 0:04:04]} (57. f4 $15) 57... Kf6 {[%emt 0:01:24]} ({Black should try} 57... Kf7 $17 58. Rc3 Kf6) 58. Nc3 $1 $15 {[%emt 0:01:04] [#] Inhibits Ra4.} Nf4 {[%emt 0:03:14]} (58... Ra1+ $1 $19 {and Black stays clearly on top.} 59. Kh2 Nf4 60. Nd5+ Nxd5 61. cxd5 f4 62. Re6+ Kf5) 59. Re8 {[%emt 0:00:50]} (59. Re1 $142) 59... Ra1+ $17 {[%emt 0:03:35]} 60. Kh2 {[%emt 0:00:00]} Rf1 {[%emt 0:00:00]} (60... Ra3 $17 61. Nd5+ Nxd5 62. cxd5 Rxf3 63. Re6+ Kg7) 61. Nd5+ $15 {[%emt 0:04:30]} Nxd5 {[%emt 0:04:05]} 62. cxd5 {[%emt 0:00:28] KR-KR} Rd1 {[%emt 0:08:30][%cal Of5f4] ...f4! is the strong threat.} 63. Re6+ {[%emt 0:00:41] The position is equal.} Kf7 {[%emt 0:00:01]} 64. Re5 {[%emt 0:00:20]} c4 {[%emt 0:00:01] Hoping for ...c3.} 65. d6 {[%emt 0:06:53]} c3 {[%emt 0:01:18] ( -> ...c2)} 66. Rxf5+ {[%emt 0:03:08]} Ke6 {[%emt 0:00:04]} 67. Rc5 {[%emt 0:01:45]} Rd3 {[%emt 0:00:01]} 68. Kg3 {[%emt 0:00:55]} Kxd6 {[%emt 0:00:03]} 69. Rc8 {[%emt 0:00:05] White threatens Rd8+ and mate.} Kd5 {[%emt 0:01:01]} 70. Kg4 {[%emt 0:00:06]} Kd4 {[%emt 0:00:16]} 71. Rc7 {[%emt 0:00:54]} ({Much weaker is} 71. f4 gxf4 72. Kxf4 Rd2 $17) 71... Rd2 {[%emt 0:01:39]} 72. Kxg5 {[%emt 0:00:07]} Rxf2 {[%emt 0:03:54]} 73. f4 {[%emt 0:00:06]} Rg2+ {[%emt 0:00:33]} 74. Kh5 {[%emt 0:01:28]} c2 {[%emt 0:00:27]} 75. f5 {[%emt 0:00:08]} Ke5 {[%emt 0:00:09]} 76. Rc5+ $1 {[%emt 0:00:05]} Kf6 {[%emt 0:00:50]} 77. Kh4 {[%emt 0:00:10]} Ke7 {[%emt 0:00:02]} 78. Kh3 {[%emt 0:00:29]} Kd6 {[%emt 0:00:05]} 79. Rc8 {[%emt 0:00:33]} Rd2 {[%emt 0:00:22]} 80. f6 {[%emt 0:01:15]} Ke6 {[%emt 0:00:09]} 81. Rc6+ {[%emt 0:00:05]} Rd6 {[%emt 0:00:30]} 82. Rxc2 {[%emt 0:00:05]} Kxf6 {[%emt 0:00:34] Weighted Error Value: White=0.08 (flawless) /Black=0.09 (flawless)} 1/2-1/2

[Event "WR Chess Masters 2023"]
[Site "Duesseldorf"]
[Date "2023.02.23"]
[Round "7.4"]
[White "Keymer, Vincent"]
[Black "Giri, Anish"]
[Result "1/2-1/2"]
[ECO "A20"]
[WhiteElo "2690"]
[BlackElo "2780"]
[Annotator "TA"]
[PlyCount "78"]
[EventDate "2023.02.16"]
[EventCountry "GER"]
[SourceTitle "playchess.com"]
[Source "ChessBase"]
[SourceQuality "1"]
[TimeControl "40/7200:20/3600:900+30"]

{[%evp 13,78,6,11,4,11,0,-8,0,11,-14,-7,0,32,0,0,6,10,23,14,12,6,15,14,0,16,16,29,23,22,25,25,22,31,0,0,0,0,0,0,0,0,0,0,0,0,0,0,0,0,0,0,0,0,0,0,0,0,0,0,0,0,0,0,0,0,0,0]} 1. c4 {[%emt 0:00:03]} e5 {[%emt 0:00:08]} 2. g3 {[%emt 0:00:05]} Nf6 {[%emt 0:00:05]} 3. Bg2 {[%emt 0:00:04]} c6 {[%emt 0:00:03]} 4. d4 {[%emt 0:00:15]} Bb4+ {[%emt 0:00:05]} 5. Bd2 {[%emt 0:00:49]} Bxd2+ {[%emt 0:00:05]} 6. Qxd2 {[%emt 0:00:04]} d6 {[%emt 0:00:06]} 7. Nc3 {[%emt 0:00:03]} O-O {[%emt 0:00:05] [#]} 8. b3 $146 {[%emt 0:00:49] A20: English Opening: 1...e5.} ({Predecessor:} 8. e3 Nbd7 9. Nge2 Re8 10. O-O e4 11. f3 exf3 12. Rxf3 Nb6 13. b3 Bg4 14. Rf4 d5 15. cxd5 Bxe2 16. Qxe2 Nbxd5 17. Nxd5 Nxd5 {½-½ Puranik,A (2597)-Adhiban,B (2654) Moscow Aeroflot op-A 2020 (3)}) 8... Qe7 {[%emt 0:04:59]} 9. d5 {[%emt 0:00:29]} Rd8 {[%emt 0:04:15]} 10. Rd1 {[%emt 0:05:35]} cxd5 {[%emt 0:06:23]} 11. Bxd5 {[%emt 0:08:40]} Na6 {[%emt 0:13:57]} 12. Bg2 {[%emt 0:07:22]} e4 {[%emt 0:12:13]} 13. Qe3 {[%emt 0:18:47][%cal Rc3e4]} Nb4 {[%emt 0:07:14]} 14. Bxe4 {[%emt 0:04:28]} Nxe4 {[%emt 0:07:39]} 15. Qxe4 {[%emt 0:00:11]} Qxe4 {[%emt 0:01:35]} 16. Nxe4 {[%emt 0:00:05]} b5 {[%emt 0:00:22]} 17. Nf3 {[%emt 0:09:36]} bxc4 {[%emt 0:01:50]} 18. bxc4 {[%emt 0:00:42]} d5 {[%emt 0:26:36][%cal Oc8a6]} 19. Nc3 {[%emt 0:18:01][%cal Rc3d5]} d4 {[%emt 0:02:11]} 20. Nd5 {[%emt 0:11:14]} (20. Rxd4 $2 {too greedy.} Nc2+ 21. Kd2 Nxd4 $19) ({And not} 20. Nxd4 Rxd4 21. Rxd4 Nc2+ 22. Kd2 Nxd4 $17) 20... Nxd5 {[%emt 0:00:10]} 21. cxd5 {[%emt 0:00:28]} Bb7 {[%emt 0:00:45]} 22. Rxd4 {[%emt 0:00:35] White wants to play d6.} Bxd5 {[%emt 0:00:17]} 23. Rd2 {[%emt 0:00:54]} (23. O-O $5 {[%cal Rf1d1]} Bxa2 24. Ra1 Rxd4 25. Nxd4 $14) 23... g5 {[%emt 0:04:07] [#] White must now prevent ...g4. The position is equal.} 24. O-O {[%emt 0:04:06] Hoping for Rfd1.} Bxf3 {[%emt 0:00:08]} 25. Rxd8+ {[%emt 0:00:03]} Rxd8 {[%emt 0:00:05]} 26. exf3 $11 {[%emt 0:00:03][%mdl 4096] Endgame KR-KR} Rd2 {[%emt 0:01:00]} 27. Ra1 {[%emt 0:00:08]} a5 {[%emt 0:01:28]} 28. a4 {[%emt 0:00:21]} Rd4 $1 {[%emt 0:00:04]} 29. Kf1 {[%emt 0:00:16]} Kg7 {[%emt 0:00:25]} 30. Ke2 {[%emt 0:00:06]} Kg6 {[%emt 0:00:29]} 31. Ke3 {[%emt 0:00:05]} Rb4 {[%emt 0:00:17]} 32. Ra3 {[%emt 0:01:09]} h5 {[%emt 0:00:12][%cal Bh7h5,Bh5h4][%mdl 32]} 33. Ra1 {[%emt 0:02:52]} f6 {[%emt 0:01:11]} 34. Kd3 {[%emt 0:02:34]} Kf5 {[%emt 0:00:35]} 35. Ra2 {[%emt 0:00:15]} h4 {[%emt 0:01:35]} 36. h3 {[%emt 0:00:50]} Rb3+ {[%emt 0:04:09]} 37. Ke2 {[%emt 0:00:37]} Rb4 {[%emt 0:01:55]} 38. Kd3 {[%emt 0:00:06]} Rb3+ {[%emt 0:00:03]} 39. Ke2 {[%emt 0:00:04]} Rb4 {[%emt 0:04:11] A balanced but interesting game.   Weighted Error Value: White=0.04 (flawless) /Black=0.03 (flawless)} 1/2-1/2